fUST/lending_fUST_20250220
["ID","MTS","AMOUNT","RATE_DAILY","PERIOD"]
[353770260,1740027046567,-473.0,0.00014478,2]
[353770262,1740027046577,-473.0,0.00014478,2]
[353770264,1740027046586,-473.0,0.00014478,2]
[353770266,1740027046595,-473.0,0.00014478,2]
[353770268,1740027046604,-473.0,0.00014478,2]
[353770270,1740027046614,-473.0,0.00014478,2]
[353770272,1740027046623,-473.0,0.00014478,2]
[353770273,1740027046633,-473.0,0.00014478,2]
[353770276,1740027046643,-473.0,0.00014478,2]
[353770278,1740027046653,-473.0,0.00014478,2]
[353770279,1740027046662,-473.0,0.00014478,2]
[353770281,1740027046671,-337.0,0.00014478,2]
[353770283,1740027046681,-337.0,0.00014478,2]
[353770285,1740027046691,-337.0,0.00014478,2]
[353770288,1740027046701,-337.0,0.00014478,2]
[353770289,1740027046710,-337.0,0.00014478,2]
[353770292,1740027046720,-337.0,0.00014478,2]
[353770293,1740027046729,-337.0,0.00014478,2]
[353770295,1740027046738,-337.0,0.00014478,2]
[353770297,1740027046748,-337.0,0.00014478,2]
[353770299,1740027046757,-337.0,0.00014478,2]
[353770301,1740027046766,-337.0,0.00014478,2]
[353770303,1740027046776,-337.0,0.00014478,2]
[353770306,1740027046785,-337.0,0.00014478,2]
[353770308,1740027046794,-337.0,0.00014478,2]
[353770310,1740027046803,-473.0,0.00014478,2]
[353770312,1740027046812,-473.0,0.00014478,2]
[353770314,1740027046821,-473.0,0.00014478,2]
[353770315,1740027046831,-473.0,0.00014478,2]
[353770317,1740027046840,-473.0,0.00014478,2]
[353770319,1740027046849,-473.0,0.00014478,2]
[353770321,1740027046858,-473.0,0.00014478,2]
[353770323,1740027046867,-473.0,0.00014478,2]
[353770325,1740027046876,-473.0,0.00014478,2]
[353770327,1740027046885,-473.0,0.00014478,2]
[353770329,1740027046894,-473.0,0.00014478,2]
[353770331,1740027046907,-473.0,0.00014478,2]
[353770333,1740027046916,-473.0,0.00014478,2]
[353770335,1740027046925,-473.0,0.00014478,2]
[353770337,1740027046934,-337.0,0.00014478,2]
[353770339,1740027046945,-337.0,0.00014478,2]
[353770341,1740027046954,-337.0,0.00014478,2]
[353770343,1740027046964,-337.0,0.00014478,2]
[353770345,1740027046973,-337.0,0.00014478,2]
[353770347,1740027046983,-337.0,0.00014478,2]
[353770349,1740027046992,-337.0,0.00014478,2]
[353770351,1740027047001,-337.0,0.00014478,2]
[353770353,1740027047011,-337.0,0.00014478,2]
[353770355,1740027047021,-337.0,0.00014478,2]
[353770357,1740027047031,-337.0,0.00014478,2]
[353770359,1740027047040,-337.0,0.00014478,2]
[353770361,1740027047049,-337.0,0.00014478,2]
[353770363,1740027047058,-337.0,0.00014478,2]
[353770364,1740027047068,-473.0,0.00014478,2]
[353770366,1740027047077,-473.0,0.00014478,2]
[353770368,1740027047087,-473.0,0.00014478,2]
[353770370,1740027047095,-473.0,0.00014478,2]
[353770372,1740027047105,-473.0,0.00014478,2]
[353770374,1740027047115,-473.0,0.00014478,2]
[353770376,1740027047124,-473.0,0.00014478,2]
[353770378,1740027047133,-473.0,0.00014478,2]
[353770380,1740027047143,-473.0,0.00014478,2]
[353770382,1740027047151,-473.0,0.00014478,2]
[353770384,1740027047161,-473.0,0.00014478,2]
[353770386,1740027047170,-473.0,0.00014478,2]
[353770388,1740027047178,-473.0,0.00014478,2]
[353770390,1740027047188,-473.0,0.00014478,2]
[353770392,1740027047197,-337.0,0.00014478,2]
[353770393,1740027047206,-337.0,0.00014478,2]
[353770395,1740027047216,-337.0,0.00014478,2]
[353770398,1740027047225,-337.0,0.00014478,2]
[353770399,1740027047234,-337.0,0.00014478,2]
[353770401,1740027047244,-337.0,0.00014478,2]
[353770403,1740027047253,-337.0,0.00014478,2]
[353770406,1740027047263,-337.0,0.00014478,2]
[353770408,1740027047272,-337.0,0.00014478,2]
[353770409,1740027047282,-337.0,0.00014478,2]
[353770411,1740027047291,-337.0,0.00014478,2]
[353770413,1740027047300,-337.0,0.00014478,2]
[353770415,1740027047309,-337.0,0.00014478,2]
[353770417,1740027047319,-337.0,0.00014478,2]
[353770419,1740027047329,-473.0,0.00014478,2]
[353770421,1740027047339,-473.0,0.00014478,2]
[353770423,1740027047348,-473.0,0.00014478,2]
[353770425,1740027047357,-473.0,0.00014478,2]
[353770427,1740027047367,-473.0,0.00014478,2]
[353770429,1740027047376,-473.0,0.00014478,2]
[353770431,1740027047386,-473.0,0.00014478,2]
[353770433,1740027047395,-473.0,0.00014478,2]
[353770435,1740027047404,-473.0,0.00014478,2]
[353770437,1740027047414,-473.0,0.00014478,2]
[353770439,1740027047423,-337.0,0.00014478,2]
[353770441,1740027047433,-337.0,0.00014478,2]
[353770443,1740027047442,-337.0,0.00014478,2]
[353770445,1740027047453,-337.0,0.00014478,2]
[353770447,1740027047463,-337.0,0.00014478,2]
[353770449,1740027047472,-337.0,0.00014478,2]
[353770451,1740027047481,-337.0,0.00014478,2]
[353770453,1740027047491,-337.0,0.00014478,2]
[353770455,1740027047500,-337.0,0.00014478,2]
[353770457,1740027047509,-337.0,0.00014478,2]
[353770459,1740027047519,-491.0,0.0001449,2]
[353770461,1740027047528,-491.77055835,0.0001449,5]
[353770463,1740027047538,-412.52393781,0.00014498,2]
[353770465,1740027047547,-80397.22967878,0.00014499,5]
[353770476,1740027047641,-43040.599728,0.00014499,5]
[353770478,1740027047652,-2552.8,0.00014499,5]
[353770480,1740027047664,-2123.9999968,0.00014499,5]
[353770482,1740027047675,-651.0,0.00014499,5]
[353770492,1740027047762,-500.0,0.00013698,2]
[353770494,1740027047772,-500.0,0.00013698,2]
[353770496,1740027047782,-610.79,0.0001378,2]
[353770498,1740027047791,-101300.83865432,0.00014499,5]
[353770501,1740027047807,-54543.4890241,0.00014499,5]
[353770535,1740027630235,281.079473,9.041e-05,2]
[353770536,1740027917641,-800.0,0.00013068,2]
[353770537,1740027917663,-3000.0,0.00013598,2]
[353770538,1740027917685,-183.85450776,0.0001369,2]
[353770539,1740027917707,-500.0,0.00013697,2]
[353770540,1740027917730,-157.17262932,0.00013697,2]
[353770541,1740027917752,-503.51119469,0.00013698,2]
[353770542,1740027917773,-500.0,0.00013698,2]
[353770543,1740027917795,-520.86511227,0.00013698,2]
[353770544,1740027917816,-511.07091318,0.00013698,2]
[353770545,1740027917838,-504.32029485,0.00013698,2]
[353770546,1740027917861,-505.63379447,0.00013698,2]
[353770547,1740027917884,-502.52436472,0.00013698,2]
[353770548,1740027917906,-500.0,0.00013698,2]
[353770549,1740027917928,-500.0,0.00013698,2]
[353770550,1740027917949,-500.0,0.00013698,2]
[353770551,1740027917970,-570.60342242,0.00013698,2]
[353770552,1740027917991,-502.90584212,0.00013698,2]
[353770553,1740027918015,-500.0,0.00013698,2]
[353770554,1740027918037,-500.0,0.00013698,2]
[353770555,1740027918058,-500.0,0.00013698,2]
[353770556,1740027918080,-500.0,0.00013698,2]
[353770557,1740027918102,-500.0,0.00013698,2]
[353770558,1740027918125,-500.0,0.00013698,2]
[353770559,1740027918147,-502.24598143,0.00013698,2]
[353770560,1740027918173,-432.52606865,0.00013698,2]
[353770561,1740027918195,-500.0,0.00013698,2]
[353770562,1740027918219,-500.0,0.00013698,2]
[353770563,1740027918241,-500.6964463,0.00013698,2]
[353770564,1740027918264,-501.3895845,0.00013698,2]
[353770565,1740027918286,-500.0,0.00013698,2]
[353770566,1740027918308,-500.0,0.00013698,2]
[353770567,1740027918329,-500.0,0.00013698,2]
[353770568,1740027918351,-500.0,0.00013698,2]
[353770569,1740027918374,-500.0,0.00013698,2]
[353770570,1740027918396,-509.61253938,0.00013698,2]
[353770571,1740027918418,-501.43737311,0.00013698,2]
[353770572,1740027918440,-500.0,0.00013698,2]
[353770573,1740027918461,-500.0,0.00013698,2]
[353770574,1740027918483,-500.0,0.00013698,2]
[353770575,1740027918504,-500.0,0.00013698,2]
[353770576,1740027918526,-500.0,0.00013698,2]
[353770577,1740027918548,-500.0,0.00013698,2]
[353770578,1740027918571,-500.0,0.00013698,2]
[353770579,1740027918593,-500.0,0.00013698,2]
[353770580,1740027918616,-500.0,0.00013698,2]
[353770581,1740027918639,-500.0,0.00013698,2]
[353770582,1740027918662,-500.0,0.00013698,2]
[353770583,1740027918684,-500.0,0.00013698,2]
[353770584,1740027918709,-2381.24,0.00013698,2]
[353770585,1740027918731,-500.0,0.00013698,2]
[353770586,1740027918754,-687.14,0.00013698,2]
[353770587,1740027918777,-259.29656532,0.00013698,2]
[353770588,1740027918799,-391.20026402,0.00013698,2]
[353770589,1740027918822,-502.75966118,0.00013698,2]
[353770590,1740027918844,-500.0,0.00013698,2]
[353770591,1740027918867,-500.0,0.00013698,2]
[353770592,1740027918888,-500.0,0.00013698,2]
[353770593,1740027918912,-1168.27,0.00013698,2]
[353770594,1740027918937,-500.0,0.00013698,2]
[353770595,1740027918958,-500.0,0.00013698,2]
[353770596,1740027918983,-399.72344031,0.00013698,2]
[353770599,1740027927574,-1969.44655969,0.00013698,2]
[353770600,1740027927603,-500.0,0.00013698,2]
[353770601,1740027927628,-2530.55344031,0.00013698,2]
[353770602,1740027939822,-5000.0,0.00013698,2]
[353770603,1740027950544,-800.0,0.00013068,2]
[353770604,1740027950568,-1122.94655969,0.00013698,2]
[353770605,1740027950592,-500.0,0.00013698,2]
[353770606,1740027950615,-511.23110889,0.00013698,2]
[353770607,1740027950639,-500.0,0.00013698,2]
[353770608,1740027950662,-500.0,0.00013698,2]
[353770609,1740027950687,-500.0,0.00013698,2]
[353770610,1740027950709,-500.0,0.00013698,2]
[353770611,1740027950733,-65.82233142,0.00013698,2]
[353770612,1740027958261,-434.17766858,0.00013698,2]
[353770613,1740027958287,-500.0,0.00013698,2]
[353770614,1740027958312,-647.64,0.00013698,2]
[353770615,1740027958338,-891.44,0.00013698,2]
[353770616,1740027958363,-500.0,0.00013698,2]
[353770617,1740027958386,-500.0,0.00013698,2]
[353770618,1740027958410,-500.0,0.00013698,2]
[353770619,1740027958432,-636.42,0.00013698,2]
[353770620,1740027958456,-390.32233142,0.00013698,2]
[353770621,1740027966190,-300.0,0.00013697,2]
[353770622,1740027966223,-109.67766858,0.00013698,2]
[353770623,1740027966251,-500.0,0.00013698,2]
[353770624,1740027966277,-509.14,0.00013698,2]
[353770625,1740027966301,-500.0,0.00013698,2]
[353770626,1740027966326,-500.0,0.00013698,2]
[353770627,1740027966352,-789.14,0.00013698,2]
[353770628,1740027966383,-500.0,0.00013698,2]
[353770629,1740027966410,-536.16,0.00013698,2]
[353770630,1740027966435,-755.88233142,0.00013698,2]
[353770631,1740027974089,-480.92766858,0.00013698,2]
[353770632,1740027974114,-500.0,0.00013698,2]
[353770633,1740027974137,-500.0,0.00013698,2]
[353770634,1740027974162,-500.0,0.00013698,2]
[353770635,1740027974188,-553.3,0.00013698,2]
[353770636,1740027974217,-553.3,0.00013698,2]
[353770637,1740027974243,-553.3,0.00013698,2]
[353770638,1740027974269,-876.05,0.00013698,2]
[353770639,1740027974296,-483.12233142,0.00013698,2]
[353770640,1740027981796,-16.87766858,0.00013698,2]
[353770641,1740027981820,-500.0,0.00013698,2]
[353770642,1740027981844,-500.0,0.00013698,2]
[353770643,1740027981867,-500.0,0.00013698,2]
[353770644,1740027981891,-500.0,0.00013698,2]
[353770645,1740027981914,-500.0,0.00013698,2]
[353770646,1740027981938,-512.59387751,0.00013698,2]
[353770647,1740027981963,-736.36,0.00013698,2]
[353770648,1740027981987,-500.0,0.00013698,2]
[353770649,1740027982011,-557.0,0.00013698,2]
[353770650,1740027982032,-177.16845391,0.00013698,2]
[353770651,1740027988985,-500.0,0.00013697,2]
[353770652,1740027989007,-157.17262932,0.00013697,2]
[353770653,1740027989030,-322.83154609,0.00013698,2]
[353770654,1740027989052,-500.0,0.00013698,2]
[353770655,1740027989075,-500.0,0.00013698,2]
[353770656,1740027989096,-658.51,0.00013698,2]
[353770657,1740027989120,-1119.59,0.00013698,2]
[353770658,1740027989145,-1229.36,0.00013698,2]
[353770659,1740027989167,-12.53582459,0.00013698,2]
[353770660,1740027996361,-487.46417541,0.00013698,2]
[353770661,1740027996385,-854.29,0.00013698,2]
[353770662,1740027996409,-2429.82,0.00013698,2]
[353770663,1740027996430,-630.27168589,0.00013698,2]
[353770664,1740027996454,-598.1541387,0.00013698,2]
[353770665,1740028002823,-63.4158613,0.00013698,2]
[353770666,1740028002848,-4936.5841387,0.00013698,2]
[353770667,1740028009355,-3356.3558613,0.00013698,2]
[353770668,1740028009380,-500.0,0.00013698,2]
[353770669,1740028009404,-500.0,0.00013698,2]
[353770670,1740028009427,-502.52436472,0.00013698,2]
[353770671,1740028009450,-141.11977398,0.00013698,2]
[353770672,1740028016940,-358.88022602,0.00013698,2]
[353770673,1740028016966,-500.0,0.00013698,2]
[353770674,1740028016993,-500.0,0.00013698,2]
[353770675,1740028017018,-630.96066825,0.00013698,2]
[353770676,1740028017042,-500.0,0.00013698,2]
[353770677,1740028017189,-756.26,0.00013698,2]
[353770678,1740028017222,-179.71246006,0.00013699,2]
[353770679,1740028017249,-553.3,0.00013779,2]
[353770680,1740028017273,-553.3,0.00013779,2]
[353770681,1740028017297,-467.58664567,0.0001378,2]
[353770682,1740028025608,-500.0,0.00013698,2]
[353770683,1740028025632,-500.0,0.00013698,2]
[353770684,1740028025657,-500.0,0.00013698,2]
[353770685,1740028025680,-1185.28,0.00013698,2]
[353770686,1740028025704,-500.0,0.00013779,2]
[353770687,1740028025728,-500.0,0.00013779,2]
[353770688,1740028025750,-300.0,0.00013779,2]
[353770689,1740028025772,-32.42227466,0.0001378,2]
[353770690,1740028025794,-500.0,0.0001378,2]
[353770691,1740028025815,-500.0,0.0001378,2]
[353770692,1740028025838,-500.0,0.0001378,2]
[353770693,1740028025860,-544.22459217,0.0001378,2]
[353770694,1740028025883,-282.57845461,0.0001378,2]
[353770695,1740028025909,-500.0,0.0001378,2]
[353770696,1740028025931,-500.0,0.0001378,2]
[353770697,1740028025954,-500.0,0.0001378,2]
[353770698,1740028025977,-500.0,0.0001378,2]
[353770699,1740028025998,-500.0,0.0001378,2]
[353770700,1740028026020,-458.52193003,0.0001378,2]
[353770701,1740028026042,-500.0,0.0001378,2]
[353770702,1740028026064,-196.97274853,0.0001378,2]
[353770703,1740028034453,-303.02725147,0.0001378,2]
[353770704,1740028034477,-500.0,0.0001378,2]
[353770705,1740028034501,-500.0,0.0001378,2]
[353770706,1740028034524,-500.0,0.0001378,2]
[353770707,1740028034547,-500.0,0.0001378,2]
[353770708,1740028034569,-500.0,0.0001378,2]
[353770709,1740028034592,-500.0,0.0001378,2]
[353770710,1740028034614,-500.0,0.0001378,2]
[353770711,1740028034639,-876.05,0.0001378,2]
[353770712,1740028034661,-506.26241945,0.0001378,2]
[353770713,1740028034684,-500.0,0.0001378,2]
[353770714,1740028034709,-500.0,0.0001378,2]
[353770715,1740028034732,-500.0,0.0001378,2]
[353770716,1740028034755,-500.0,0.0001378,2]
[353770717,1740028034779,-500.0,0.0001378,2]
[353770718,1740028034804,-736.36,0.0001378,2]
[353770719,1740028034829,-557.0,0.0001378,2]
[353770720,1740028034853,-407.86500155,0.0001378,2]
[353770721,1740028034880,-500.0,0.0001378,2]
[353770722,1740028034906,-113.43532753,0.0001378,2]
[353770723,1740028056450,-570.60342242,0.00013698,2]
[353770724,1740028056474,-429.39657758,0.00013698,2]
[353770793,1740028232417,-300.0,0.00013697,2]
[353770794,1740028232427,-70.60342242,0.00013698,2]
[353770796,1740028232437,-500.0,0.00013698,2]
[353770798,1740028232447,-249.67718525,0.00013698,2]
[353770800,1740028232458,-599.36281475,0.00013698,2]
[353770802,1740028232467,-500.0,0.00013698,2]
[353770804,1740028232476,-500.0,0.00013698,2]
[353770805,1740028232485,-500.0,0.00013698,2]
[353770806,1740028232495,-500.0,0.00013698,2]
[353770807,1740028232505,-500.0,0.00013698,2]
[353770808,1740028232515,-155.76103246,0.00013698,2]
[353770809,1740028232527,-344.23896754,0.00013698,2]
[353770810,1740028232537,-500.0,0.00013698,2]
[353770811,1740028232547,-504.63,0.00013698,2]
[353770812,1740028232556,-772.08,0.00013698,2]
[353770813,1740028232566,-2441.26,0.00013698,2]
[353770814,1740028232576,-500.0,0.00013698,2]
[353770815,1740028232585,-711.1,0.00013698,2]
[353770816,1740028232596,-581.23,0.00013698,2]
[353770817,1740028232605,-146.12071846,0.00013698,2]
[353770818,1740028232633,-1072.83928154,0.00013698,2]
[353770819,1740028232643,-289.43,0.00013698,2]
[353770820,1740028232653,-500.0,0.00013698,2]
[353770821,1740028232663,-500.0,0.00013698,2]
[353770822,1740028232672,-902.38743802,0.00013698,2]
[353770823,1740028232684,-768.94507582,0.00013698,2]
[353770855,1740028238267,-975.97748616,0.00013698,2]
[353770856,1740028238279,-594.88,0.00013698,2]
[353770857,1740028238288,-7729.64490466,0.00013698,2]
[353770860,1740028238322,-277.46854865,0.00013698,2]
[353770862,1740028238333,-957.27654669,0.00013698,2]
[353770864,1740028238343,-355.29107841,0.00013698,2]
[353770866,1740028238357,-980.45892159,0.00013698,2]
[353770867,1740028238367,-500.0,0.00013698,2]
[353770868,1740028238377,-23.98461862,0.00013698,2]
[353770869,1740028240626,-267.2614,0.00013698,2]
[353770870,1740028240639,-208.75398138,0.00013698,2]
[353770871,1740028240648,-505.20303547,0.00013698,2]
[353770872,1740028240683,-13.14112057,0.00013698,2]
[353770873,1740028240693,-818.7,0.00013698,2]
[353770874,1740028240703,-715.83,0.00013698,2]
[353770875,1740028240712,-500.0,0.00013698,2]
[353770876,1740028240722,-500.0,0.00013698,2]
[353770877,1740028240732,-500.0,0.00013698,2]
[353770878,1740028240742,-386.56467247,0.0001378,2]
[353770879,1740028240752,-500.0,0.0001378,2]
[353770880,1740028240762,-500.0,0.0001378,2]
[353770881,1740028240771,-756.26,0.0001378,2]
[353770882,1740028240781,-1185.28,0.0001378,2]
[353770883,1740028240790,-849.04,0.0001378,2]
[353770884,1740028240800,-467.52,0.0001378,2]
[353770885,1740028240809,-500.0,0.0001378,2]
[353770886,1740028240819,-500.0,0.0001378,2]
[353770887,1740028240829,-275.57918474,0.0001378,2]
[353770888,1740028240839,-500.0,0.0001378,2]
[353770889,1740028240848,-772.08,0.0001378,2]
[353770890,1740028240858,-2441.26,0.0001378,2]
[353770891,1740028240867,-711.1,0.0001378,2]
[353770892,1740028240877,-581.23,0.0001378,2]
[353770893,1740028240886,-1218.96,0.0001378,2]
[353770894,1740028240895,-500.0,0.0001378,2]
[353770895,1740028240905,-2647.31,0.0001378,2]
[353770896,1740028240915,-8964.39,0.0001378,2]
[353770897,1740028240924,-1335.75,0.0001378,2]
[353770898,1740028240933,-500.0,0.0001378,2]
[353770899,1740028240943,-486.47941237,0.0001378,2]
[353770900,1740028240952,-818.7,0.0001378,2]
[353770901,1740028240962,-715.83,0.0001378,2]
[353770902,1740028240972,-500.0,0.0001378,2]
[353770903,1740028240981,-644.62,0.0001378,2]
[353770904,1740028240991,-500.0,0.0001378,2]
[353770905,1740028241000,-151.0,0.00013855,2]
[353770906,1740028241010,-500.0,0.00013861,2]
[353770907,1740028241019,-500.0,0.00013862,2]
[353770908,1740028241029,-500.0,0.00013863,2]
[353770909,1740028241038,-500.0,0.00013863,2]
[353770910,1740028241047,-500.0,0.00013863,2]
[353770911,1740028241056,-408.52562394,0.00013863,2]
[353770912,1740028241065,-500.0,0.00013863,2]
[353770913,1740028241075,-512.31556209,0.00013863,2]
[353770914,1740028241085,-500.0,0.00013863,2]
[353770915,1740028241095,-500.0,0.00013863,2]
[353770916,1740028241104,-500.0,0.00013863,2]
[353770917,1740028241113,-500.0,0.00013863,2]
[353770918,1740028241123,-500.0,0.00013863,2]
[353770919,1740028241132,-756.26,0.00013863,2]
[353770920,1740028241141,-1185.28,0.00013863,2]
[353770921,1740028241150,-849.04,0.00013863,2]
[353770922,1740028241159,-500.0,0.00013863,2]
[353770923,1740028241169,-500.0,0.00013863,2]
[353770924,1740028241179,-500.0,0.00013863,2]
[353770925,1740028241188,-772.08,0.00013863,2]
[353770926,1740028241197,-2441.26,0.00013863,2]
[353770927,1740028241206,-711.1,0.00013863,2]
[353770928,1740028241215,-581.23,0.00013863,2]
[353770929,1740028241224,-1218.96,0.00013863,2]
[353770930,1740028241233,-2647.31,0.00013863,2]
[353770931,1740028241243,-8964.39,0.00013863,2]
[353770932,1740028241253,-1335.75,0.00013863,2]
[353770933,1740028241264,-500.0,0.00013863,2]
[353770934,1740028241277,-818.7,0.00013863,2]
[353770935,1740028241287,-715.83,0.00013863,2]
[353770936,1740028241296,-500.0,0.00013863,2]
[353770937,1740028241306,-500.0,0.00013863,2]
[353770938,1740028241317,-500.0,0.00013944,2]
[353770939,1740028241327,-500.0,0.00013944,2]
[353770940,1740028241337,-500.0,0.00013945,2]
[353770941,1740028241346,-500.0,0.00013945,2]
[353770942,1740028241358,-500.0,0.00013945,2]
[353770943,1740028241369,-500.0,0.00013945,2]
[353770944,1740028241378,-500.0,0.00013945,2]
[353770945,1740028241388,-500.0,0.00013945,2]
[353770946,1740028241397,-500.0,0.00013945,2]
[353770947,1740028241406,-756.26,0.00013945,2]
[353770948,1740028241416,-1185.28,0.00013945,2]
[353770949,1740028241425,-849.04,0.00013945,2]
[353770950,1740028241435,-500.0,0.00013945,2]
[353770951,1740028241445,-500.0,0.00013945,2]
[353770952,1740028241454,-500.0,0.00013945,2]
[353770953,1740028241464,-772.08,0.00013945,2]
[353770954,1740028241473,-2441.26,0.00013945,2]
[353770955,1740028241482,-711.1,0.00013945,2]
[353770956,1740028241492,-581.23,0.00013945,2]
[353770957,1740028241501,-1218.96,0.00013945,2]
[353770958,1740028241511,-2647.31,0.00013945,2]
[353770959,1740028241520,-8964.39,0.00013945,2]
[353770960,1740028241531,-1335.75,0.00013945,2]
[353770961,1740028241540,-500.0,0.00013945,2]
[353770962,1740028241548,-818.7,0.00013945,2]
[353770963,1740028241558,-715.83,0.00013945,2]
[353770964,1740028241567,-500.0,0.00013945,2]
[353770965,1740028241578,-500.0,0.00013945,2]
[353770966,1740028241587,-500.0,0.00013993,2]
[353770967,1740028241596,-265.506,0.00013994,2]
[353770968,1740028241605,-1969.0,0.00013994,2]
[353770969,1740028241614,-540.571,0.00013994,2]
[353770970,1740028241623,-2287.0,0.00013994,2]
[353770971,1740028241632,-500.0,0.00014026,2]
[353770972,1740028241642,-500.0,0.00014026,2]
[353770973,1740028241651,-580.42437664,0.00014027,2]
[353770974,1740028241660,-500.0,0.00014027,2]
[353770975,1740028241670,-500.0,0.00014027,2]
[353770976,1740028241680,-500.0,0.00014027,2]
[353770977,1740028241689,-500.0,0.00014027,2]
[353770978,1740028241699,-500.0,0.00014027,2]
[353770979,1740028241708,-756.26,0.00014027,2]
[353770980,1740028241717,-1185.28,0.00014027,2]
[353770981,1740028241726,-849.04,0.00014027,2]
[353770982,1740028241735,-500.0,0.00014027,2]
[353770983,1740028241744,-500.0,0.00014027,2]
[353770984,1740028241753,-500.0,0.00014027,2]
[353770985,1740028241763,-772.08,0.00014027,2]
[353770986,1740028241772,-2441.26,0.00014027,2]
[353770987,1740028241781,-711.1,0.00014027,2]
[353770988,1740028241791,-581.23,0.00014027,2]
[353770989,1740028241800,-1218.96,0.00014027,2]
[353770990,1740028241810,-2647.31,0.00014027,2]
[353770991,1740028241819,-8964.39,0.00014027,2]
[353770992,1740028241828,-1335.75,0.00014027,2]
[353770993,1740028241838,-500.0,0.00014027,2]
[353770994,1740028241848,-818.7,0.00014027,2]
[353770995,1740028241857,-715.83,0.00014027,2]
[353770996,1740028241867,-500.0,0.00014027,2]
[353770997,1740028241876,-500.0,0.00014027,2]
[353770998,1740028241885,-13275.78028017,0.0001404,2]
[353770999,1740028241895,-7438.69753278,0.00014078,2]
[353771000,1740028241904,-500.0,0.00014095,2]
[353771001,1740028241914,-151.0,0.000141,2]
[353771002,1740028241923,-500.0,0.00014108,2]
[353771003,1740028241932,-500.0,0.00014109,2]
[353771004,1740028241941,-376.47130049,0.00014109,2]
[353771005,1740028241951,-224.55,0.00014109,2]
[353771006,1740028241963,-500.0,0.00014109,2]
[353771007,1740028241974,-500.0,0.00014109,2]
[353771008,1740028241984,-756.26,0.00014109,2]
[353771009,1740028241993,-1185.28,0.00014109,2]
[353771010,1740028242005,-849.04,0.00014109,2]
[353771011,1740028242015,-500.0,0.00014109,2]
[353771012,1740028242027,-500.0,0.00014109,2]
[353771013,1740028242036,-500.0,0.00014109,2]
[353771014,1740028242047,-772.08,0.00014109,2]
[353771015,1740028242056,-2441.26,0.00014109,2]
[353771016,1740028242066,-711.1,0.00014109,2]
[353771017,1740028242075,-581.23,0.00014109,2]
[353771018,1740028242084,-1218.96,0.00014109,2]
[353771019,1740028242093,-2647.31,0.00014109,2]
[353771020,1740028242103,-8964.39,0.00014109,2]
[353771021,1740028242112,-1335.75,0.00014109,2]
[353771022,1740028242121,-500.0,0.00014109,2]
[353771023,1740028242131,-818.7,0.00014109,2]
[353771024,1740028242140,-715.83,0.00014109,2]
[353771025,1740028242149,-500.0,0.00014109,2]
[353771026,1740028242158,-500.0,0.00014109,2]
[353771027,1740028242168,-500.000001,0.0001418,2]
[353771028,1740028242178,-500.0,0.0001419,2]
[353771029,1740028242187,-500.0,0.00014191,2]
[353771030,1740028242196,-500.0,0.00014191,2]
[353771031,1740028242205,-500.0,0.00014191,2]